Cogmind - Beta 13 @@@ ROGUE MODE // 2024.06.20 @ 17:25:05 Player: ovsyanka Result: Destroyed by OW-JQC(R) with Subdweller Shrapnel Launcher Performance ------------- Evolutions (0) 0 Regions Visited (3) 600 Robots Destroyed (15) 75 Value Destroyed (363) 363 Prototype IDs (0) 0 Alien Tech Used (0) 0 Bonus (111) 111 TOTAL SCORE: 1149 Bonus ------- Follower Combat Kills 111 Cogmind --------- Core Integrity 0/250 Matter 300/300 Energy 100/100 System Corruption 0% Temperature Cool (0) Movement Treading (160) Location -10/Subcaves Parts ------- > --- POWER (1) -------- (None) > --- PROPULSION (2) --- Improved Treads Improved Treads > --- UTILITY (2) ------ High-capacity Storage Unit Seismic Detector > --- WEAPON (2) ------- Light Assault Rifle Light Cannon > --- INVENTORY (20) --- Ion Engine Light Ion Engine Light Nuclear Core Light Nuclear Core Cooling System Cooling System Structural Scanner Improved Terrain Scanner Terrain Scan Processor Targeting Computer Medium Laser Medium Laser Medium Laser Particle Gun Rocket Launcher Datajack Mining Laser Proton Bomb Trap Proton Bomb Trap Peak State ------------ > --- POWER ------------ Ion Engine > --- PROPULSION ------- Improved Treads Improved Treads > --- UTILITY ---------- High-capacity Storage Unit Seismic Detector > --- WEAPON ----------- Light Assault Rifle Light Cannon > --- INVENTORY -------- Ion Engine Light Ion Engine Light Nuclear Core Light Nuclear Core Cooling System Cooling System Structural Scanner Improved Terrain Scanner Terrain Scan Processor Targeting Computer Medium Laser Medium Laser Medium Laser Particle Gun Rocket Launcher Datajack Mining Laser Proton Bomb Trap Proton Bomb Trap [Rating: 12] Favorites ----------- Power Ion Engine Engine Ion Engine Propulsion Improved Treads Treads Improved Treads Wheel Wheel Utility Seismic Detector Device Seismic Detector Storage High-capacity Storage Unit Weapon Light Assault Rifle Energy Gun Medium Laser Ballistic Gun Light Assault Rifle Ballistic Cannon Light Cannon Special Weapon Mining Laser Build | -11 -10 -10 -10 ------- Run | Yrd Mat Min Sub Slots Evolved . | . . . . Power . | . . . . Propulsion . | . . . . Utility . | . . . . Weapon . | . . . . Parts Attached 20 | 7 12 1 . Power 4 | 1 3 . . Engine 4 | 1 3 . . Core . | . . . . Reactor . | . . . . Propulsion 7 | 2 4 1 . Treads 6 | 1 4 1 . Leg . | . . . . Wheel 1 | 1 . . . Hover . | . . . . Flight . | . . . . Utility 3 | 2 1 . . Device 1 | 1 . . . Storage 2 | 1 1 . . Processor . | . . . . Hackware . | . . . . Protection . | . . . . Artifact . | . . . . Weapon 6 | 2 4 . . Energy Gun 1 | 1 . . . Energy Cannon . | . . . . Ballistic Gun 3 | 1 2 . . Ballistic Cannon 1 | . 1 . . Launcher . | . . . . Special Weapon 1 | . 1 . . Impact Weapon . | . . . . Slashing Weapon . | . . . . Piercing Weapon . | . . . . Special Melee Weapon . | . . . . Unidentified Prototypes . | . . . . Parts Lost 3 | . 1 1 1 Power 2 | . 1 . 1 Propulsion 1 | . . 1 . Utility . | . . . . Weapon . | . . . . Highest Loss Streak 1 | . 1 1 1 To Critical Strikes . | . . . . Average Slot Usage (%) 98 | . 98 99 99 Engine 13 | . 12 14 13 Treads 27 | . 27 27 28 Device 14 | . 14 14 14 Storage 14 | . 14 14 14 Ballistic Gun 19 | . 26 14 14 Ballistic Cannon 7 | . 1 14 14 Naked Turns . | . . . . Heaviest Build 50 | 14 50 50 50 Greatest Support 46 | 10 46 46 46 Greatest Overweight (x) 2 | 1 1 2 1 Average Overweight (x) . | . . 1 1 Largest Inventory Capacity 20 | 8 20 20 20 Average Capacity 17 | 7 14 20 20 Most Carried 19 | 7 16 19 19 Average Carried 14 | 4 11 17 19 Final Capacity 20 | 8 20 20 20 Final Carried 19 | 7 16 19 19 Class Distribution -------------------- 100% | Mutant Dominant Class ---------------- Mutant | -10/Materials Mutant | -10/Mines Mutant | -10/Subcaves Resources | -11 -10 -10 -10 ----------- Run | Yrd Mat Min Sub Matter Collected 512 | 278 189 45 . Remotely . | . . . . Salvage Created 451 | 110 340 1 . Parts 39 | 9 30 . . Haulers Intercepted . | . . . . Recyclers Shooed . | . . . . Parts Field Recycled . | . . . . Retrieved Matter . | . . . . Parts Self-Destructed 6 | . . . 6 Prevented . | . . . . Kills | -11 -10 -10 -10 ------- Run | Yrd Mat Min Sub Combat Hostiles Destroyed 7 | . 6 1 . Guns 7 | . 6 1 . Classes Destroyed 6 | 2 3 1 . Builder 3 | . 3 . . Tunneler 2 | 2 . . . Recycler 1 | 1 . . . Watcher 2 | . 2 . . Grunt 6 | . 6 . . Demolisher 1 | . . 1 . Best Kill Streak 3 | 3 2 1 . Combat Bots Only 2 | . 2 1 . Max Kills in Single Turn 1 | 1 1 1 . Gunslinging . | . . . . Exploded . | . . . . Melee . | . . . . Uniques/NPCs Destroyed . | . . . . Combat | -11 -10 -10 -10 -------- Run | Yrd Mat Min Sub Hostile Shots Fired 61 | . 49 8 4 Missed 14 | . 11 . 3 Damage Taken 959 | . 489 362 108 Core 310 | . 120 123 67 Absorbed by Shields . | . . . . Core Remaining (%) 100 | 100 . . . Volleys Fired 64 | 8 51 4 1 Largest 2 | 2 2 2 2 Hottest 100 | 70 100 55 55 Shots Fired 124 | 16 98 8 2 Gun 115 | 16 94 4 1 Cannon 5 | . . 4 1 Launcher . | . . . . Special 4 | . 4 . . Kinetic 112 | 8 94 8 2 Thermal 12 | 8 4 . . Explosive . | . . . . Electromagnetic . | . . . . Robot Hit Streak 18 | 5 18 2 2 Robot Miss Streak 4 | 1 4 4 1 Penetration Max . | . . . . Secondary Targets 1 | . 1 . . Max Gunslinging Chain 1 | . 1 . . Shots Hit Robots 84 | 12 68 3 1 Core Hits 35 | 4 27 3 1 Critical Kills 1 | 1 . . . Critical Parts Destroyed 1 | . 1 . . Critical Strikes 3 | 2 1 . . Burn 1 | 1 . . . Destroy 2 | 1 1 . . Melee Attacks . | . . . . Impact . | . . . . Slashing . | . . . . Piercing . | . . . . Sneak Attacks . | . . . . Combat Hostiles . | . . . . Follow-up Attacks . | . . . . Damage Inflicted 749 | 119 586 36 8 Guns 729 | 119 586 16 8 Cannons 16 | . . 16 . Explosions . | . . . . Melee . | . . . . Ramming 4 | . . 4 . Kinetic 669 | 43 586 32 8 Thermal 76 | 76 . . . Explosive . | . . . . Electromagnetic . | . . . . Impact . | . . . . Slashing . | . . . . Piercing . | . . . . Highest Corruption . | . . . . Average Corruption . | . . . . Corruption Purged . | . . . . Corruption Blocked . | . . . . Overload Shots . | . . . . Overflow Damage . | . . . . Projectiles . | . . . . Explosions . | . . . . Melee . | . . . . Knockbacks . | . . . . Impact . | . . . . Kinetic . | . . . . Secondary . | . . . . Self-Inflicted Damage . | . . . . Shots . | . . . . Rammed 1 | . . 1 . Targets Rammed 1 | . . 1 . Kicked . | . . . . Crushed . | . . . . Highest Temperature 80 | 60 80 14 . Average Temperature 22 | 30 20 10 . Received Heat Transfer 294 | . 294 . . Siege Activations . | . . . . Robots Corrupted . | . . . . Combat Hostiles . | . . . . Parts Fried . | . . . . Impact Corruptions . | . . . . Robots Melted . | . . . . Combat Hostiles . | . . . . Parts Melted . | . . . . Heat Transferred 296 | 296 . . . Parts Sabotaged . | . . . . Parts Stolen . | . . . . Parts Stripped . | . . . . Power Chain Reactions . | . . . . Alert | -11 -10 -10 -10 ------- Run | Yrd Mat Min Sub Peak Influence 139 | 15 88 139 . Initial 9 | . 9 . . Average 31 | 5 32 31 . Maximum Alert Level . | . . . . Low Security (%) 100 | 100 100 100 . Level 1 . | . . . . Level 2 . | . . . . Level 3 . | . . . . Level 4 . | . . . . Level 5 . | . . . . High Security . | . . . . Max Security . | . . . . Squads Dispatched . | . . . . Investigation . | . . . . Extermination . | . . . . Reinforcement . | . . . . Assault . | . . . . Garrison . | . . . . Intercept . | . . . . Searches Triggered . | . . . . Construction Impeded . | . . . . Haulers Reinforced . | . . . . Active Scanning Responses . | . . . . Cargo Convoy Interrupts . | . . . . Stealth | -11 -10 -10 -10 --------- Run | Yrd Mat Min Sub Distress Signals 3 | . 1 2 . Communications Jammed . | . . . . Distress Signals . | . . . . Times Spotted 23 | . 17 4 2 Peak Tracking Total 3 | . 3 1 2 Tactical Retreats 1 | . 1 . . Traps | -11 -10 -10 -10 ------- Run | Yrd Mat Min Sub Traps Triggered . | . . . . Indirectly . | . . . . Trap Hack Attempts . | . . . . Triggered . | . . . . Disarmed . | . . . . Reprogrammed . | . . . . Reused . | . . . . Traps Extracted . | . . . . Installed . | . . . . Triggered . | . . . . Most Traps Carried 2 | . . 2 2 Machines | -11 -10 -10 -10 ---------- Run | Yrd Mat Min Sub Machines Disabled . | . . . . Max in Single Turn . | . . . . Machines Repaired . | . . . . Machines Dismantled . | . . . . Machines Sabotaged . | . . . . Overloaded Fab Kills . | . . . . Hacking | -11 -10 -10 -10 --------- Run | Yrd Mat Min Sub Machines Accessed 5 | . 5 . . Terminals 4 | . 4 . . Fabricators . | . . . . Repair Stations 1 | . 1 . . Recycling Units . | . . . . Scanalyzers . | . . . . Garrison Access . | . . . . Total Hacks 10 | . 10 . . Successful 4 | . 4 . . Failed 6 | . 6 . . Catastrophic 1 | . 1 . . Database Lockouts . | . . . . Manual 9 | . 9 . . Terminals 8 | . 8 . . Fabricators . | . . . . Repair Stations 2 | . 2 . . Recycling Units . | . . . . Scanalyzers . | . . . . Garrison Access . | . . . . Terminal Hacks 2 | . 2 . . Robot Analysis 2 | . 2 . . Fabricator Hacks . | . . . . Repair Station Hacks 1 | . 1 . . Scan Component 1 | . 1 . . Recycling Unit Hacks . | . . . . Scanalyzer . | . . . . Garrison Access Hacks . | . . . . Unauthorized Hacks 1 | . 1 . . Terminals 1 | . 1 . . Assimilate 1 | . 1 . . Fabricators . | . . . . Repair Stations . | . . . . Recycling Units . | . . . . Scanalyzers . | . . . . Garrison Access . | . . . . Data Cores Recovered . | . . . . Used . | . . . . Hacking Detections 4 | . 4 . . Full Trace Events . | . . . . Feedback Events . | . . . . Feedback Blocked . | . . . . Robot Schematics Acquired . | . . . . Robots Built . | . . . . Authchips . | . . . . Time . | . . . . Total Robot Build Rating . | . . . . Part Schematics Acquired . | . . . . Parts Built . | . . . . Authchips . | . . . . Time . | . . . . Total Part Build Rating . | . . . . Parts Repaired . | . . . . Time . | . . . . Parts Recycled . | . . . . Recycled Matter . | . . . . Retrieved Matter . | . . . . Retrieved Components . | . . . . Parts Scanalyzed . | . . . . Part Schematics Acquired . | . . . . Parts Damaged . | . . . . Bothacking | -11 -10 -10 -10 ------------ Run | Yrd Mat Min Sub Used RIF Installer . | . . . . Robots Hacked . | . . . . Non-combat . | . . . . Combat . | . . . . Robot Hacks Applied . | . . . . Relay Couplers Released . | . . . . Fabnet Peak Effective % . | . . . . Robots Rewired . | . . . . Allies Hacked . | . . . . Hacks Repelled . | . . . . Allies | -11 -10 -10 -10 -------- Run | Yrd Mat Min Sub Total Allies 4 | . 1 3 . Largest Group 3 | . 1 3 3 Highest-Rated Group 40 | . 10 40 40 Highest-Rated Ally 16 | . 10 16 16 Total Orders 1 | . 1 . . FOLLOW 1 | . 1 . . Ally Attacks 18 | . . 12 6 Total Damage 197 | . . 154 43 Kills 6 | . . 5 1 Allies Corrupted . | . . . . Allies Melted . | . . . . Intel | -11 -10 -10 -10 ------- Run | Yrd Mat Min Sub Robot Analysis Total 2 | . 2 . . Derelict Logs Recovered 1 | . . 1 . Drone Launches . | . . . . Drone Recoveries . | . . . . Exploration | -11 -10 -10 -10 ------------- Run | Yrd Mat Min Sub Turns Passed 3769 | 84 1730 1232 723 Spaces Moved 1527 | 49 696 482 300 Core 3 | 3 . . . Treads 1460 | . 678 482 300 Legs . | . . . . Wheels 64 | 46 18 . . Hover . | . . . . Flight . | . . . . Fastest Speed 50 | 50 95 240 240 Average Speed 212 | 90 190 240 240 Slowest Speed 320 | 95 240 320 240 Overloaded Moves . | . . . . Propulsion Burnouts . | . . . . Robots Hopped . | . . . . Cave-ins Triggered . | . . . . Exploration Rate (%) 48 | 4 77 91 20 Regions Visited 3 Branch Regions 2 Pre-discovered Areas . | . . . . Known Exits Taken . | . . . . Unknown Exits Taken 3 | 1 1 1 . Scrap Searched 1 | . . 1 . Spaces Dug 4 | . 4 . . Terrain Destroyed 4 | . 4 . . Melee . | . . . . Projectile 4 | . 4 . . AOE . | . . . . Terrain Rammed . | . . . . Walls Destroyed . | . . . . Machines Disabled . | . . . . Actions | -11 -10 -10 -10 --------- Run | Yrd Mat Min Sub Total 1936 | 70 1016 549 301 Wait 291 | . 233 58 . Move 1524 | 48 695 481 300 Hop . | . . . . Pick Up 25 | 7 14 4 . Fast Attach 9 | 7 2 . . Attach 1 | . . 1 . Detach . | . . . . Swap 10 | . 10 . . Drop 11 | . 11 . . Fire 64 | 8 51 4 1 Melee . | . . . . Ram . | . . . . Kick . | . . . . Crush 1 | . . 1 . Escape Stasis . | . . . . Rewire . | . . . . Trap . | . . . . Miscellaneous . | . . . . Route ------- -11/Scrapyard -10/Materials (discovered 3 exits: [*Mat] / [*Min] / [*Sub]) -10/Mines (discovered 3 exits: [*Mat x2] / [*Sub]) -10/Subcaves History --------- Turn | Location | Event 25 | -11/Scrapyard | Discovered new exit (range 15) 85 | -11/Scrapyard | Entered Materials 316 | -10/Materials | Build established: Mutant 704 | -10/Materials | Discovered new exit (range 13) 870 | -10/Materials | Discovered new exit (range 9) 1756 | -10/Materials | Discovered new exit (range 11) 1815 | -10/Materials | Entered Mines 1816 | -10/Mines | Assembled infested the area 1880 | -10/Mines | Learned 4 Materials zone layouts 1992 | -10/Mines | Core integrity fell below 50% 2003 | -10/Mines | Core integrity fell below 20% 2049 | -10/Mines | Found a hidden stash of uninstalled traps 2135 | -10/Mines | Discovered new exit (range 5) 2150 | -10/Mines | Assisted by bots powering up and referring to "LRC-V3" 2683 | -10/Mines | Discovered new exit (range 8) 2925 | -10/Mines | Received a Rocket Launcher from a helpful Derelict 3002 | -10/Mines | Discovered new exit (range 15) 3047 | -10/Mines | Entered Subcaves 3047 | -10/Subcaves | Accompanied by 3 allies 3770 | -10/Subcaves | Destroyed by OW-JQC(R) with Subdweller Shrapnel Launcher Last Messages --------------- launcher goes a long way." 02923_ N5-MPT(g): "Need to get rid of a swarm? Done. Need a big hole in the wall? Done." 02924_ N5-MPT(g): "Need a small hole in the wall? Leave that to the mining laser wimps, I say!" 02925_ N5-MPT(g): "Would you like a rocket launcher? I know I would if I were you, so I'm going to lend you mine." 02925_ N5-MPT(g) slips back into the shadows. 02926_ Slammed into U-05 Engineer. 02936_ Acquired Rocket Launcher. 03002_ EXIT=FOUND LOCATION=UNKNOWN AMBIENT_HEAT=-10 GOAL=ESCAPE 03122_ Mercenary 1a destroyed. 03510_ 32-5EV(u) tweaks Twisted Machinery. 03766_ Trooper 1b destroyed. 03766_ Trooper 1a destroyed. 03768_ Ion Engine destroyed. Map ----- +----------------------------------------------------+ | ??????????????### #???????????????? | | #?????????????# #???????????????? | | #?????????????# # # #???????????????? | | #?????????????## ## #### #####???????????????? | | ??????????????# ### ##?# #???????????????????? | | ?????????????## ### #### ???????????????????? | | #?#####??????# ## #? ??????????????????? | | ### #??????# ## ## #?????????????????? | | ## #??????## ## #?## ##?##?????????????????? | | ## #####???# #### ##??##?????????????????????? | | ?# #???##??## #####?#???##??????????????? | | ?# #?????### # # # #??????????????? | | ?# #????## #??????????????? | | ?# ##????# #???????????????? | | ?# ##????# ## #???????????????? | | ?## ##???# #??######???????????????? | | ??### ###?###### ####????????????????????? | | ????## ######## ##???????????????????? | | ?????# ##??????????????????? | | ##???## ##????? #??????????? | | ###### ### #??? #??????????? | | ### #?# ###% ### #???????????? | | ## ##?# ### #;;;; #???????????? | | #??# #### =;;;; ##??????????? | | ##?### ###### *%[ #??????????? | | ## #???# ## ;;@ *% #??????????? | | ### #??# ##;;; ##??????????? | | ### ###??# ;; R#???????????? | | ## ##????# R" ?????????? | | ## #?????## ;; " ????????? | | ## #??????## ;;;;;;# ## ### ???????? | | ### ##??????######## ###?# #???????????? | | #?#### #######???????? #???? #???????????? | | ?????# ## ##??????#[%#????? ####???????????? | | ????## #??????##* ??????#??????????????? | | ???## #???????# ?????????????????????? | | ??## ### ### ###????? ?????????????????????? | | ??# #?###?# ###??? ?????????????????????? | | ??# ##??#### #??? ?????????????????????? | | ??# ###??## ## ##???# ?????????????????????? | | ??###????# ##?###????? ?????????????????????? | | ?????????## #?????????????????????????????????? | | ??????????## ##?????????????????????????????????? | | ???????????# #??????????????????????????????????? | | ??????????## #??????????????????????????????????? | | ###?????### #??????????????????????????????????? | | # #?????# #??????????????????????????????????? | | # #####?# #??????????????????????????????????? | | ### ###??????????????????????????????????? | | ### #????????????????????????????????????? | +----------------------------------------------------+ Best States ------------- Heat Dissipation 25 Energy Generation 10 Energy Capacity 250 Matter Stores 300 Matter Capacity 300 Sight Range 16 Terrain Scan Density 10 Evasion (%) 44 Recoil Reduction 2 Item Schematics ----------------- None Robot Schematics ------------------ None Fabricated ------------ Nothing Alien Tech Used ----------------- None Achievements -------------- None Challenges ------------ None Game ------ Seed CatalystMicrowarpWheel Manual? 0 Play Time 00:14:57 Cumulative 47.0 hours Start 2024.06.20 @ 17:09:32 End 2024.06.20 @ 17:25:05 Sessions 1 Manual Loads 0 Difficulty Rogue Special Mode None Game No. 30 Rogue 17 Adventurer 13 Explorer 0 Win Type - Total 0 Types 0/0/0/0/0/0/0/0/0 Lore% 23 Gallery% 40 Achievement% 32 Wizard Run 0 Options --------- Layout 2 ASCII 0 Keyboard 0 Movement Numpad Keybinds 0 Fullscreen 2 Font 16/Swanston Map View 55x47 Zoom Use 0% Tactical HUD 1 Map Filters NONE Filters NONE Steam 0 RUN: f4fb1ae2-a85d-4f71-be2f-1a2a56d0d29b